{"text_format":"3","workbook":"xlsx","n_sheets":3,"sheets":["Ogólnouczelniane","Część III- Opis przedmiotu zam.","Formularz asortymentowo-ilośc."],"not_rendered":{"images":51,"defined_names":5},"read":"whole","date_system":"1900"}

{"sheet":"Ogólnouczelniane","index":0,"n_rows":54,"n_cols":17,"rows_kept":54,"merged":[[3,1,53,1]]}
[]
[{"$nulls":4},1,2,3,4,5,6,7,8,9,10,11,12]
[null,null,"Ogólnouczelniane\n","Poz. opisu","Wydawnictwo Naukowe","Instytut Zarządzania","Instytut Biologii","Instytut Pedagogiki","Instytut Historii","Instytut Filologii","Instytut Geografii","Biuro ds..Rozwoju i Współpracy","Biuro ds.. Studentów","Katedra Bezpieczeństwa i Socjologii","Szkoła Doktorska","Sekcja ds.. Promocji","ILOŚĆ RAZEM"]
[null,"UNOWERSYTET POMORSKI W SŁUPSKU",{"$f":"'Część III- Opis przedmiotu zam.'!D6","v":"Teczka konferencyjna"},{"$f":"'Część III- Opis przedmiotu zam.'!B7","v":"1.01"},null,50,80,100,100,95,20,100,null,80,80,1050,{"$f":"SUM(E4:P4)","v":1755}]
[null,null,{"$f":"'Część III- Opis przedmiotu zam.'!D9","v":"Długopis dotykowy Touch Top"},{"$f":"'Część III- Opis przedmiotu zam.'!B10","v":"1.02"},500,{"$nulls":10},1600,2100]
[null,null,{"$f":"'Część III- Opis przedmiotu zam.'!D12","v":"Długopis plastikowy"},{"$f":"'Część III- Opis przedmiotu zam.'!B13","v":"1.03"},null,150,100,null,200,95,20,500,null,80,80,1550,2775]
[null,null,{"$f":"'Część III- Opis przedmiotu zam.'!D15","v":"Wieczny ołówek "},{"$f":"'Część III- Opis przedmiotu zam.'!B16","v":"1.04"},{"$nulls":11},100,100]
[null,null,{"$f":"'Część III- Opis przedmiotu zam.'!D18","v":"Zestaw piśmienniczy "},{"$f":"'Część III- Opis przedmiotu zam.'!B19","v":"1.05"},{"$nulls":11},100,100]
[null,null,{"$f":"'Część III- Opis przedmiotu zam.'!D21","v":"Zestaw piśmienniczy S"},{"$f":"'Część III- Opis przedmiotu zam.'!B22","v":"1.06"},{"$nulls":11},50,50]
[null,null,{"$f":"'Część III- Opis przedmiotu zam.'!D24","v":"Ołówek z gumką"},{"$f":"'Część III- Opis przedmiotu zam.'!B25","v":"1.07"},500,null,50,100,300,15,null,1000,{"$nulls":3},4000,5965]
[null,null,{"$f":"'Część III- Opis przedmiotu zam.'!D27","v":"Notes klejony a5"},{"$f":"'Część III- Opis przedmiotu zam.'!B28","v":"1.08"},null,150,100,null,100,80,null,300,null,80,80,1050,1940]
[null,null,{"$f":"'Część III- Opis przedmiotu zam.'!D30","v":"Notes "},{"$f":"'Część III- Opis przedmiotu zam.'!B31","v":"1.09"},{"$nulls":11},100,100]
[null,null,{"$f":"'Część III- Opis przedmiotu zam.'!D33","v":"Zestaw notes z długopisem "},{"$f":"'Część III- Opis przedmiotu zam.'!B34","v":"1.10"},{"$nulls":11},100,100]
[null,null,{"$f":"'Część III- Opis przedmiotu zam.'!D36","v":"Notes i planner "},{"$f":"'Część III- Opis przedmiotu zam.'!B37","v":"1.11"},{"$nulls":11},100,100]
[null,null,{"$f":"'Część III- Opis przedmiotu zam.'!D39","v":"Zakładka do książki z linijką"},{"$f":"'Część III- Opis przedmiotu zam.'!B40","v":"1.12"},{"$nulls":3},100,200,65,{"$nulls":5},1050,1415]
[null,null,{"$f":"'Część III- Opis przedmiotu zam.'!D42","v":"Wizytownik "},{"$f":"'Część III- Opis przedmiotu zam.'!B43","v":"1.13"},{"$nulls":11},50,50]
[null,null,{"$f":"'Część III- Opis przedmiotu zam.'!D46","v":"Magnes na zakładki do książek"},{"$f":"'Część III- Opis przedmiotu zam.'!B47","v":"1.14"},{"$nulls":11},250,250]
[null,null,{"$f":"'Część III- Opis przedmiotu zam.'!D49","v":"Blok z karteczkami"},{"$f":"'Część III- Opis przedmiotu zam.'!B50","v":"1.15"},{"$nulls":11},200,200]
[null,null,{"$f":"'Część III- Opis przedmiotu zam.'!D52","v":"Torba na prezent mała"},{"$f":"'Część III- Opis przedmiotu zam.'!B53","v":"1.16"},null,null,70,null,50,null,10,100,{"$nulls":3},370,600]
[null,null,{"$f":"'Część III- Opis przedmiotu zam.'!D55","v":"Torba na prezent duża"},{"$f":"'Część III- Opis przedmiotu zam.'!B56","v":"1.17"},{"$nulls":11},150,150]
[null,null,{"$f":"'Część III- Opis przedmiotu zam.'!D58","v":"Torba "},{"$f":"'Część III- Opis przedmiotu zam.'!B59","v":"1.18"},null,null,30,100,50,95,null,300,10,null,80,600,1265]
[null,null,{"$f":"'Część III- Opis przedmiotu zam.'!D61","v":"Torba bawełniana "},{"$f":"'Część III- Opis przedmiotu zam.'!B62","v":"1.19"},{"$nulls":11},50,50]
[null,null,{"$f":"'Część III- Opis przedmiotu zam.'!D64","v":"Torba na laptop"},{"$f":"'Część III- Opis przedmiotu zam.'!B65","v":"1.20"},{"$nulls":11},50,50]
[null,null,{"$f":"'Część III- Opis przedmiotu zam.'!D67","v":"Smycz z karabińczykiem"},{"$f":"'Część III- Opis przedmiotu zam.'!B68","v":"1.21"},null,150,50,100,100,null,20,300,null,80,80,1500,2380]
[null,null,{"$f":"'Część III- Opis przedmiotu zam.'!D70","v":"Plecak z bawełny "},{"$f":"'Część III- Opis przedmiotu zam.'!B71","v":"1.22"},{"$nulls":11},100,100]
[null,null,{"$f":"'Część III- Opis przedmiotu zam.'!D73","v":"Etui na dokumenty  "},{"$f":"'Część III- Opis przedmiotu zam.'!B74","v":"1.23"},{"$nulls":11},50,50]
[null,null,{"$f":"'Część III- Opis przedmiotu zam.'!D76","v":"Zestaw kredek w tubie"},{"$f":"'Część III- Opis przedmiotu zam.'!B77","v":"1.24"},{"$nulls":11},100,100]
[null,null,{"$f":"'Część III- Opis przedmiotu zam.'!D79","v":"Zestaw szkolno biurowy"},{"$f":"'Część III- Opis przedmiotu zam.'!B80","v":"1.25"},{"$nulls":11},100,100]
[null,null,{"$f":"'Część III- Opis przedmiotu zam.'!D82","v":"Kubek emaliowany "},{"$f":"'Część III- Opis przedmiotu zam.'!B83","v":"1.26"},{"$nulls":11},30,30]
[null,null,{"$f":"'Część III- Opis przedmiotu zam.'!D85","v":"Kubek izotermiczny Tallin"},{"$f":"'Część III- Opis przedmiotu zam.'!B86","v":"1.27"},{"$nulls":11},100,100]
[null,null,{"$f":"'Część III- Opis przedmiotu zam.'!D88","v":"Bidon z wkładem na owoce"},{"$f":"'Część III- Opis przedmiotu zam.'!B89","v":"1.27"},{"$nulls":11},50,50]
[null,null,{"$f":"'Część III- Opis przedmiotu zam.'!D91","v":"Bidon sportowy "},{"$f":"'Część III- Opis przedmiotu zam.'!B92","v":"1.28"},{"$nulls":11},100,100]
[null,null,{"$f":"'Część III- Opis przedmiotu zam.'!D94","v":"Ładowarka indukcyjna"},{"$f":"'Część III- Opis przedmiotu zam.'!B95","v":"1.29"},{"$nulls":11},80,80]
[null,null,{"$f":"'Część III- Opis przedmiotu zam.'!D97","v":"Stojak do telefonu Gimo"},{"$f":"'Część III- Opis przedmiotu zam.'!B98","v":"1.30"},{"$nulls":11},80,80]
[null,null,{"$f":"'Część III- Opis przedmiotu zam.'!D100","v":"Okulary przeciwsłoneczne"},{"$f":"'Część III- Opis przedmiotu zam.'!B101","v":"1.31"},{"$nulls":11},200,{"$f":"SUM(E35:P35)","v":200}]
[null,null,{"$f":"'Część III- Opis przedmiotu zam.'!D103","v":"Butelka z atomizerem"},{"$f":"'Część III- Opis przedmiotu zam.'!B104","v":"1.32"},{"$nulls":11},50,50]
[null,null,{"$f":"'Część III- Opis przedmiotu zam.'!D106","v":"Mydełko w listkach "},{"$f":"'Część III- Opis przedmiotu zam.'!B107","v":"1.33"},{"$nulls":11},50,50]
[null,null,{"$f":"'Część III- Opis przedmiotu zam.'!D109","v":"Lusterko składane"},{"$f":"'Część III- Opis przedmiotu zam.'!B110","v":"1.34"},{"$nulls":11},80,80]
[null,null,{"$f":"'Część III- Opis przedmiotu zam.'!D112","v":"Kosmetyczka "},{"$f":"'Część III- Opis przedmiotu zam.'!B113","v":"1.35"},{"$nulls":11},100,100]
[null,null,{"$f":"'Część III- Opis przedmiotu zam.'!D115","v":"Uchwyt na telefon do samochodu"},{"$f":"'Część III- Opis przedmiotu zam.'!B116","v":"1.36"},{"$nulls":11},100,100]
[null,null,{"$f":"'Część III- Opis przedmiotu zam.'!D118","v":"Szklana butelka 500 ml"},{"$f":"'Część III- Opis przedmiotu zam.'!B119","v":"1.37"},{"$nulls":11},100,100]
[null,null,{"$f":"'Część III- Opis przedmiotu zam.'!D121","v":"Pendrive"},{"$f":"'Część III- Opis przedmiotu zam.'!B122","v":"1.38"},null,null,20,null,50,47,null,null,10,null,null,210,337]
[null,null,{"$f":"'Część III- Opis przedmiotu zam.'!D124","v":"Parasol składany automatycznie rozkładany"},{"$f":"'Część III- Opis przedmiotu zam.'!B125","v":"1.39"},{"$nulls":11},20,20]
[null,null,{"$f":"'Część III- Opis przedmiotu zam.'!D127","v":"Opaska odblaskowam 30 cm"},{"$f":"'Część III- Opis przedmiotu zam.'!B128","v":"1.40"},{"$nulls":11},400,400]
[null,null,{"$f":"'Część III- Opis przedmiotu zam.'!D130","v":"Osłona na kamerę Webcam Spyless"},{"$f":"'Część III- Opis przedmiotu zam.'!B131","v":"1.41"},{"$nulls":11},600,600]
[null,null,{"$f":"'Część III- Opis przedmiotu zam.'!D133","v":"Apteczka turystyczna"},{"$f":"'Część III- Opis przedmiotu zam.'!B134","v":"1.42"},{"$nulls":11},50,50]
[null,null,{"$f":"'Część III- Opis przedmiotu zam.'!D136","v":"Maskotka Miś"},{"$f":"'Część III- Opis przedmiotu zam.'!B137","v":"1.43"},{"$nulls":11},100,100]
[null,null,{"$f":"'Część III- Opis przedmiotu zam.'!D139","v":"Kubek 350 ml"},{"$f":"'Część III- Opis przedmiotu zam.'!B140","v":"1.44"},null,15,5,null,50,null,null,100,{"$nulls":3},100,270]
[null,null,{"$f":"'Część III- Opis przedmiotu zam.'!D142","v":"Sciereczka do czyszczenia okularów"},{"$f":"'Część III- Opis przedmiotu zam.'!B143","v":"1.45"},{"$nulls":11},100,100]
[null,null,{"$f":"'Część III- Opis przedmiotu zam.'!D145","v":"Zegar ścienny "},{"$f":"'Część III- Opis przedmiotu zam.'!B146","v":"1.46"},{"$nulls":11},30,30]
[null,null,{"$f":"'Część III- Opis przedmiotu zam.'!D148","v":"Zestaw świec"},{"$f":"'Część III- Opis przedmiotu zam.'!B149","v":"1.47"},{"$nulls":11},100,100]
[null,null,{"$f":"'Część III- Opis przedmiotu zam.'!D151","v":"Magnes  "},{"$f":"'Część III- Opis przedmiotu zam.'!B152","v":"1.48"},{"$nulls":11},500,500]
[null,null,{"$f":"'Część III- Opis przedmiotu zam.'!D154","v":"Balsam do ust "},{"$f":"'Część III- Opis przedmiotu zam.'!B155","v":"1.50"},{"$nulls":11},100,100]
[null,null,{"$f":"'Część III- Opis przedmiotu zam.'!D157","v":"Kubek reklamowy"},{"$f":"'Część III- Opis przedmiotu zam.'!B158","v":"1.51"},500,{"$nulls":11},{"$f":"SUM(E54:P54)","v":500}]

{"sheet":"Część III- Opis przedmiotu zam.","index":1,"n_rows":158,"n_cols":5,"rows_kept":158,"merged":[[2,1,2,4],[5,3,5,4],[6,3,6,4],[8,3,8,4],[9,3,9,4],[11,3,11,4],[12,3,12,4],[14,3,14,4],[15,3,15,4],[17,3,17,4],[18,3,18,4],[20,3,20,4],[21,3,21,4],[23,3,23,4],[24,3,24,4],[26,3,26,4],[27,3,27,4],[29,3,29,4],[30,3,30,4],[32,3,32,4],[33,3,33,4],[35,3,35,4],[36,3,36,4],[38,3,38,4],[39,3,39,4],[41,3,41,4],[42,3,42,4],[45,3,45,4],[46,3,46,4],[48,3,48,4],[49,3,49,4],[51,3,51,4],[52,3,52,4],[54,3,54,4],[55,3,55,4],[58,3,58,4],[60,3,60,4],[61,3,61,4],[63,3,63,4],[64,3,64,4],[66,3,66,4],[67,3,67,4],[69,3,69,4],[70,3,70,4],[72,3,72,4],[73,3,73,4],[75,3,75,4],[76,3,76,4],[78,3,78,4],[79,3,79,4],[81,3,81,4],[82,3,82,4],[84,3,84,4],[85,3,85,4],[87,3,87,4],[88,3,88,4],[90,3,90,4],[91,3,91,4],[93,3,93,4],[94,3,94,4],[96,3,96,4],[97,3,97,4],[99,3,99,4],[100,3,100,4],[102,3,102,4],[103,3,103,4],[105,3,105,4],[106,3,106,4],[108,3,108,4],[109,3,109,4],[111,3,111,4],[112,3,112,4],[114,3,114,4],[115,3,115,4],[117,3,117,4],[118,3,118,4],[120,3,120,4],[121,3,121,4],[123,3,123,4],[124,3,124,4],[126,3,126,4],[127,3,127,4],[129,3,129,4],[130,3,130,4],[132,3,132,4],[133,3,133,4],[135,3,135,4],[136,3,136,4],[138,3,138,4],[139,3,139,4],[141,3,141,4],[142,3,142,4],[144,3,144,4],[145,3,145,4],[147,3,147,4],[148,3,148,4],[150,3,150,4],[151,3,151,4],[153,3,153,4],[154,3,154,4],[156,3,156,4],[157,3,157,4]]}
[null,null,"  Opis przedmiotu zamówienia"]
[]
[null,"Jeżeli w opisie przedmiotu zamówienia wskazano jakikolwiek znak towarowy, patent czy pochodzenie, należy przyjąć, że wskazane patenty, znaki towarowe, pochodzenie określają parametry techniczne, eksploatacyjne, użytkowe, co oznacza, że Zamawiający dopuszcza złożenie oferty w tej części przedmiotu zamówienia o równoważnych parametrach technicznych, eksploatacyjnych i użytkowych. Zamawiający dopuszcza zmiany w podanych rozmiarach asortymentu w zakresie + /- 10 %.\n"]
[]
[null,"Poz.",null,"Opis Zamawiającego","\n"]
[null,null,{"$f":"CONCATENATE(\"      ilość:  \",Ogólnouczelniane!Q4)","v":"      ilość:  1755"},"Teczka konferencyjna"]
[null,"1.01",null,"Rozmiar a4, kreda mat 350 g, zadruk dwustronny 4/4, dwubigowa 5,5 mm, folia no scratch + lakier UV wybiórczy. Projekt do ustalenia i wykonania przed realizacją. "]
[]
[null,null,{"$f":"CONCATENATE(\"      ilość:  \",Ogólnouczelniane!Q5)","v":"      ilość:  2100"},"Długopis dotykowy Touch Top"]
[null,"1.02",null,"Długopis wykonany z aluminium,  wyposażony w końcówkę do obsługi ekranów dotykowych. Wkład w kolorze niebieskim. Długopis posiada obrotowy mechanizm włączania. Długopis koloru białego z granatoym logo. Projekt loga  do ustalenia i wykonania przed realizacją."]
[]
[null,null,{"$f":"CONCATENATE(\"      ilość:  \",Ogólnouczelniane!Q6)","v":"      ilość:  2775"},"Długopis plastikowy"]
[null,"1.03",null,"Materiał: plastik, guma. Wymiary: 138 x 10 x 10 mm. Tampodruk 60 x 6 mm. Kolor długopisu: granatowy z białym logo.  Wkład w kolorze niebieskim. Projekt znakowania do ustalenia i wykonania przed realizacją."]
[]
[null,null,{"$f":"CONCATENATE(\"      ilość:  \",Ogólnouczelniane!Q7)","v":"      ilość:  100"},"Wieczny ołówek "]
[null,"1.04",null,"Materiał: metal. Wymiary: 150 x 10 x 10 mm.  Tampodruk 100 x 4 mm. \nDlugowieczny ołówek bez grafitu,z  gumką i końcówką do ekranów dotykowych. \nWkład wykonany jest ze stopu metali, który pozostawia ślad na papierze. Dlugość pisania odpowiada 100 zwykłym ołówkom.\n Nie wymaga ostrzenia. Kolor granatowy lub biały. Projekt znakowania do ustalenia i wykonania przed realizacją."]
[]
[null,null,{"$f":"CONCATENATE(\"      ilość:  \",Ogólnouczelniane!Q8)","v":"      ilość:  100"},"Zestaw piśmienniczy "]
[null,"1.05",null,"Materiał: aluminium, karton, plastik. Wymiary 170 x 40 x 24 mm. Grawer 100 x 6 mm lub UV 100 x 25 mm. Kolor: długopisu i ołówka - granatowy.\nZestaw składający się z aluminiowego długopisu i ołówka. \nWkład w kolorze niebieskim. W granatowym kartonowym etui. Projekt znakowania do ustalenia i wykonania przed realizacją."]
[]
[null,null,{"$f":"CONCATENATE(\"      ilość:  \",Ogólnouczelniane!Q9)","v":"      ilość:  50"},"Zestaw piśmienniczy S"]
[null,"1.06",null,"Materiał: miedź, stal nierdzewna. Wymiary 173 x 65 x 29 mm. UV 130 x 35 mm lub Grawer 40 x 5 mm. \nZestaw piśmienniczy składający się z metalowego pióra kulkowego i długopisu. Wkład w kolorze niebieskim. Kolor pióra, długopisu oraz opakowania - granatowy. Zestaw pakowany w upominkowe opakowanie. Projekt znakowania do ustalenia i wykonania przed realizacją."]
[]
[null,null,{"$f":"CONCATENATE(\"      ilość:  \",Ogólnouczelniane!Q10)","v":"      ilość:  5965"},"Ołówek z gumką"]
[null,"1.07",null,"Zatemperowany ołówek z gumką\nMateriał: drewno, kolor ołówka granatowy - logo białe  lub kolor ołówka biały - logo granatowe. \nWymiary produktu: ø7 (+/- 2 mm) x 185 mm (+/- 10mm)\nNadruk: 1 kolor jednostronnie, na każdym ołówku ten sam nadruk (tampondruk). Projekt znakowania do ustalenia i wykonania przed realizacją."]
[]
[null,null,{"$f":"CONCATENATE(\"      ilość:  \",Ogólnouczelniane!Q11)","v":"      ilość:  1940"},"Notes klejony a5"]
[null,"1.08",null,"Notes w kratkę, kolor kartek biały, napisy, loga w kolorze granatowym, gramatura offset 80 g, format a5 145 x 210 mm. Projekt grafiki i kolor do ustalenia i wykonania przed realizacją"]
[]
[null,null,{"$f":"CONCATENATE(\"      ilość:  \",Ogólnouczelniane!Q12)","v":"      ilość:  100"},"Notes "]
[null,"1.09",null,"Materiał: karton, papier, plastik. Wymiary: 150 x 180 x 10 mm. DTF: 75 x 160 mm. Tampodruk 75 x 50 mm. Notatnik 70 kartek formatu B6 w linie z papieru z surowców wtórnych z długopisem o wymiarach 137 x 10 x 10 mm części plastikowe są biodegradowane. \nWłlad w kolorze niebieskim. Kolor okładki, długopisu - granatowy. Projekt znakowania do ustalenia i wykonania przed realizacją."]
[]
[null,null,{"$f":"CONCATENATE(\"      ilość:  \",Ogólnouczelniane!Q13)","v":"      ilość:  100"},"Zestaw notes z długopisem "]
[null,"1.10",null,"Materiał papier, aluminium. Wymiary: 140 x 210 x 12 mm. UV 50 x 100mm lub grawer 60 x 50 mm lub tampodruk 85 x 50 mm\n lub tłoczenie 50 x 20 mm.  Notes w twardej oprawie, 72 kartkowy w kratkę (papier 70 g/m²) \nz tasiemką do zaznaczania zapisanej ostatniej strony i elastyczną gumką chroniącą wnętrze. Tasiemka oraz elastyczna gumka w kolorze garantowym.  \nDlugopis aluminowy z rysikiem do obsługi ekranów dotykowych, wyposażony w niebieski wklad. Kolor długopisu - granatowy. Zestaw pakowany w upominkowe pudełko. Projekt znakowania do ustalenia i wykonania przed realizacją."]
[]
[null,null,{"$f":"CONCATENATE(\"      ilość:  \",Ogólnouczelniane!Q14)","v":"      ilość:  100"},"Notes i planner "]
[null,"1.11",null,"Materiał: papier. Wymiary: 130 x 167 x 28 mm, notes: 105 x 148 x 5 mm, dlugopis: 148  x 8 x 8 mm. \nTampodruk 40 x 40 mm. Planer 60 stron, notes 40 stron. Dodatki w kolorze granatowym.Projekt znakowania do ustalenia i wykonania przed realizacją. "]
[]
[null,null,{"$f":"CONCATENATE(\"      ilość:  \",Ogólnouczelniane!Q15)","v":"      ilość:  1415"},"Zakładka do książki z linijką"]
[null,"1.12",null,"Materiał: papier. Wymiary 210 x 67 x 2 mm. Tampodruk 100 x 25 mm. \nZadkładka do książek, która także może służyć jako linijka o długości 13 cm/5 cali. Zastoswano papier wykonany z surowców wtórnych o gramaturze 500 g/m². \nDołączone żółte karteczki samoprzylepne o gramaturze 75 g/m². Klej wykorzystany w karteczkach samoprzylepnych jest bezpieczny dla środowiska. Projekt znakowania do ustalenia i wykonania przed realizacją. "]
[]
[null,null,{"$f":"CONCATENATE(\"      ilość:  \",Ogólnouczelniane!Q16)","v":"      ilość:  50"},"Wizytownik "]
[null,"1.13",null,"Materiał: ekoskóra. Wymiary 95 x 65 x 19 mm. Grawer wykonany na magnetycznym zapięciu. \nEtui na wizytówki wykonane z ekoskóry z magentycznym zapięciem. \nMieści 15 sztuk wizytówek. Kolor granatowy lub czarny. Projekt znakowania do ustalenia i wykonania przed realizacją. "]
[]
[]
[null,null,{"$f":"CONCATENATE(\"      ilość:  \",Ogólnouczelniane!Q17)","v":"      ilość:  250"},"Magnes na zakładki do książek"]
[null,"1.14",null,"Materiał: Plas pap met. Wymiary: 60 x 25mm. \nDzieki dwóm paskom magnetycznym trzyma się jednej lub więcej stron książki bez wyślizgiwania się lub wypadania. Kolor granatowy lub biały. Projekt znakowania do ustalenia i wykonania przed realizacją."]
[]
[null,null,{"$f":"CONCATENATE(\"      ilość:  \",Ogólnouczelniane!Q18)","v":"      ilość:  200"},"Blok z karteczkami"]
[null,"1.15",null,"Blok z karteczkami, zamierający 200 karteczek z papieru kremowego chamois o gramaturze 80 g/m2 oraz 5 x 25 karteczek memo o gramaturze 75 g/m2. Kolor bloku - granat. \nOprawa bloczku: laminowany kolorowy papier o gramaturze 128 g/m2.\nWymiary: 75 x 75 x 27 mmm\nProdukt zapakowany z przeźroczystą folię z taśmą klejącą.\nProjekt grafiki do ustalenia i wykonania przed realizacją."]
[]
[null,null,{"$f":"CONCATENATE(\"      ilość:  \",Ogólnouczelniane!Q19)","v":"      ilość:  600"},"Torba na prezent mała"]
[null,"1.16",null,"Torby papierowe mniejsze 240 mm (szer) x 90 mm (głębokość) x 340 mm (wysokość).\nMateriał: papier kredowy matowy 200g, uchwyt sznurkowy w kolorze granatowym wzmocnienie kartonowe w stopie i mankiecie górnym, nadruk: 1/0 obustronnie jednakowy. Projekt znakowania do ustalenia i wykonania przed realizacją."]
[]
[null,null,{"$f":"CONCATENATE(\"      ilość:  \",Ogólnouczelniane!Q20)","v":"      ilość:  150"},"Torba na prezent duża"]
[null,"1.17",null,"Torby papierowe większe 360 mm (szer) x 100 mm (głębokość)  x 400 mm (wysokość).\nMateriał: papier kredowy 200g, uchwyt sznurkowy w kolorze granatowym wzmocnienie kartonowe w stopie i makiecie górnym nadruk: 1/0 obustronnie jednakowy). Projekt znakowania do ustalenia i wykonania przed realizacją."]
[]
[null,null,{"$f":"CONCATENATE(\"      ilość:  \",Ogólnouczelniane!Q21)","v":"      ilość:  1265"},"Torba "]
[null,"1.18",null,"Torba bawełniana 140 g/m², 38 x 42 x 9 cm, Szwy boczne obrębione overlockiem, dodatkowo wzmocnione ściegiem prostym. Uchwyty wszyte mocnym szwem krzyżowym, długie uszy,  nadruk w jednym miejscu- pełen kolor, projekt znakowania i kolor do ustalenia i wykonania przed realizacją"]
[]
[null,null,{"$f":"CONCATENATE(\"      ilość:  \",Ogólnouczelniane!Q22)","v":"      ilość:  50"},"Torba bawełniana "]
[null,"1.19",null,"Materiał: bawełna 220 g/m². Wymiary 350 x 350x 205 mm.  Sitodruk 250 x 250 mm. Kolor granat. \n Bawełniana torba na zakupy z długimi uchwytami o gramaturze 230 g/m². \nPordukt może być poddany procesowi recyklingu. Projekt znakowania do ustalenia i wykonania przed realizacją."]
[]
[null,null,{"$f":"CONCATENATE(\"      ilość:  \",Ogólnouczelniane!Q23)","v":"      ilość:  50"},"Torba na laptop"]
[null,"1.20",null,"Materiał: poliester 300 D. Wymiary 300 x 300 x 70 mm. Termotransfer 200 x 100 mm. Kolor granatowy. \nWyścielana torba na laptop z tkaniny 300D powlekanej PVC. Główna przegroda przeznaczona na laptop 15''. \nDodatkowa kieszeń zewnętrzna zapinana na rzep. Wewnątrz podszewka 210T.\n Dopinany pasek pozwala nosić torbę na ramieniu. \nDodatkowy pasek z tyłu torby pozwala umieścić ją na rączce od walizki. Projekt znakowania do ustalenia i wykonania przed realizacją."]
[]
[null,null,{"$f":"CONCATENATE(\"      ilość:  \",Ogólnouczelniane!Q24)","v":"      ilość:  2380"},"Smycz z karabińczykiem"]
[null,"1.21",null,"Smycz o szerokości 2 cm, kolor granatowy, białe loga, druk sublimacyjny dwustronny, karabińczyk, pełnokolorowy.\nProjekt grafiki  do ustalenia i wykonania przed realizacją."]
[]
[null,null,{"$f":"CONCATENATE(\"      ilość:  \",Ogólnouczelniane!Q25)","v":"      ilość:  100"},"Plecak z bawełny "]
[null,"1.22",null,"Materiał: bawełna 140g/m². Wymiary 230 x 420 x 1 m. Sitodruk 250 x 250 mm. \nPlecak z  bawełny 140g/m² z plecionymi sznurkami i uchwytami.\n Może służyć jako plecak bądź torba na zakupy. Kolor granatowy. Projekt znakowania do ustalenia i wykonania przed realizacją."]
[]
[null,null,{"$f":"CONCATENATE(\"      ilość:  \",Ogólnouczelniane!Q26)","v":"      ilość:  50"},"Etui na dokumenty  "]
[null,"1.23",null,"Materiał: ekoskóra. Wymiary: 95 x 120 x 8 mm. Grawer 60 x 50 mm. Kolor : granatowy lub czarny.  Wykonanie z bardzo efektownej ekoskóry etui na dokumenty. Pomieści dowód rejestracyjny, prawo jazdy i dowód osobisty.  Etui zapakowane w pudełko papierowe. Projekt znakowania do ustalenia i wykonania przed realizacją."]
[]
[null,null,{"$f":"CONCATENATE(\"      ilość:  \",Ogólnouczelniane!Q27)","v":"      ilość:  100"},"Zestaw kredek w tubie"]
[null,"1.24",null,"Materiał: drewno, karton. Wymiary 34 x 98 x 34 mm. Tampodruk 20 x 40 mm. \nZestaw drewnianych kredek w 12 kolorach. Długość kredki 8,5 cm. \nPakowany w kartonową tubę. Na tubie logo. \nProdukt wytworzony z dbałością o środowisko naturalne. Projekt znakowania do ustalenia i wykonania przed realizacją."]
[]
[null,null,{"$f":"CONCATENATE(\"      ilość:  \",Ogólnouczelniane!Q28)","v":"      ilość:  100"},"Zestaw szkolno biurowy"]
[null,"1.25",null,"Materiał: słoma pszeniczna. Wymiary 165 x 34 x 15 mm. UV 135 x 12 mm. Zestaw składa się z długopisu, ołówka automatycznego, linijki i gumki. Całość zapakowana w pudełko.  Niebieski wkład. Kolor długopisu, ołówka, linijki oraz opakowania  - granatowy.  Znakowanie na opakowaniu. Logo w kolorze białym. Projekt znakowania do ustalenia i wykonania przed realizacją."]
[]
[null,null,{"$f":"CONCATENATE(\"      ilość:  \",Ogólnouczelniane!Q29)","v":"      ilość:  30"},"Kubek emaliowany "]
[null,"1.26",null,"Materiał: stal węglowa, stal nierdzewna. Wymiary: 125 x 98 x 88 mm. Kolor kubka granatowy lub biały. Pojemność 500 ml. Projekt znakowania do ustalenia i wykonania przed realizacją."]
[]
[null,null,{"$f":"CONCATENATE(\"      ilość:  \",Ogólnouczelniane!Q30)","v":"      ilość:  100"},"Kubek izotermiczny Tallin"]
[null,"1.27",null,"Materiał: stal nierdzewna. Wymiary 67 x 217 x 67 mm. Logo  UV 25 x 170 mm. Pojemność 450 ml. Kolor granatowy lub biały. \nSzczelny kubek izotermiczny -termos. Oryginalna gofrowana powierchnia kubka z satynowym, przyjemnym w dotyku wykończeniem. Wewnętrzna ścianka wykonana ze stali o podwyższonej jakości 18/8. \nPróżnia pomiędz dwiema ściankami zapewnia bardzo dobre właściwości termoizolacyjne. Szczelne zamknięcie - leak proof zapobiega wyciekaniu plynów. Zamknięcie typu flip up sip. Utrzymuje ciepło do 8 godzin. Projekt znakowania do ustalenia i wykonania przed realizacją."]
[]
[null,null,{"$f":"CONCATENATE(\"      ilość:  \",Ogólnouczelniane!Q31)","v":"      ilość:  50"},"Bidon z wkładem na owoce"]
[null,"1.27",null,"Materiał: tritan, polipropylen. Wymiary: 75 x 225 x 75 mm. Tampodruk 30 x 100 mm. Pojemność: 700 ml. \nLekki szczelny bidon z solidnym zamknięciem, wyposażony w pojemnik na kawałki owoców lub miętę. \nWykonany z tritanu - wytrzymałego przeźroczystego tworzywa niezmieniającego smaku napoju. Wolny od BPA. Kolor: biały lub granatowy. Projekt znakowania do ustalenia i wykonania przed realizacją."]
[]
[null,null,{"$f":"CONCATENATE(\"      ilość:  \",Ogólnouczelniane!Q32)","v":"      ilość:  100"},"Bidon sportowy "]
[null,"1.28",null,"Materiał: polipropylen. Wymiary 80 x 260 x 80 mm. Tampodruk 30 x 30 mm. Kolor: biały lub granatowy. Szczelny bidon o pojemności 1 l o ergonomicznym kształcie. Szczelne zamknięcie - leak proof zapobiega wyciekaniu płynów. Projekt znakowania do ustalenia i wykonania przed realizacją."]
[]
[null,null,{"$f":"CONCATENATE(\"      ilość:  \",Ogólnouczelniane!Q33)","v":"      ilość:  80"},"Ładowarka indukcyjna"]
[null,"1.29",null,"Plastik. Wymiary: 99 x 99 x 10 mm (grubość); Tampodruk 35 x 35 mm, kolor biały, logo w kolorze granatowym. \nŁadowarka indykcyjna zgodna ze standardem QI. \nMaksymalna moc ładowania 5W.  Dołączony kabel 1 m. Projekt znakowania do ustalenia i wykonania przed realizacją."]
[]
[null,null,{"$f":"CONCATENATE(\"      ilość:  \",Ogólnouczelniane!Q34)","v":"      ilość:  80"},"Stojak do telefonu Gimo"]
[null,"1.30",null,"ABS Wymiary: 77 x 145 x 107 mm. Tampodruk 50 x 20 mm. Kolor granatowy lub biały \nAżurowa konstrukcja pozwala na podpięcie ładowarki od dołu podczas gdy telefon pozsotaje stabilny ustawiony w pozycji pionowej. Nieużywana składa się do poręcznych rozmiarów. Projekt znakowania do ustalenia i wykonania przed realizacją."]
[]
[null,null,{"$f":"CONCATENATE(\"      ilość:  \",Ogólnouczelniane!Q35)","v":"      ilość:  200"},"Okulary przeciwsłoneczne"]
[null,"1.31",null,"Materiał : plastik. Wymiary: 145 x 48 x 145 mm. Tampodruk 50 x 7 mm. Soczewki akrylowe. Filtr ochronny UV 400. Kolor oprawek granatowy z bialym logo/ napisem lub kolor oprawek biały z granatowym logo/napisem na nausznikach. Projekt znakowania do ustalenia i wykonania przed realizacją."]
[]
[null,null,{"$f":"CONCATENATE(\"      ilość:  \",Ogólnouczelniane!Q36)","v":"      ilość:  50"},"Butelka z atomizerem"]
[null,"1.32",null,"Materiał PET, PP. Wymiary 31 x 32 x 31 mm.  Tampodruk 17 x 60 mm. Poręczna butelka z atomizerem o pojemności 60 ml. Projekt znakowania do ustalenia i wykonania przed realizacją."]
[null,1]
[null,null,{"$f":"CONCATENATE(\"      ilość:  \",Ogólnouczelniane!Q37)","v":"      ilość:  50"},"Mydełko w listkach "]
[null,"1.33",null,"Materiał: Mydlo, PP. Wymiary: 70 x 45 x 18 m.  Tampodruk 25 x 45 mm. \nMydlane listki w elastycznym, zamykanym etui. Kolor etui granatowy lub biały. \nHigieniczny mini zestaw idealny by zawsze mieć go przy sobie w torebce, samochodzie czy podróży. \nAby umyć ręce wystarczy umieścić rozpuszczalny, mydlany listek na dłoni i zmoczyć go wodą. \n25 sztuk listków w zestawie. Pudełko w kolorze granatowym. Projekt znakowania do ustalenia i wykonania przed realizacją."]
[]
[null,null,{"$f":"CONCATENATE(\"      ilość:  \",Ogólnouczelniane!Q38)","v":"      ilość:  80"},"Lusterko składane"]
[null,"1.34",null,"Materiał: Metal, ekoskóra. Wymiary: 58 x 61 x 10 mm, UV 50 x 50 mm lub Grawer 40 x 25 mm.  Lusterko pakowane w kartonowe pudełko. Projekt znakowania do ustalenia i wykonania przed realizacją. Kolor ekoskóry - granatowy lub biały. Projekt znakowania do ustalenia i wykonania przed realizacją."]
[]
[null,null,{"$f":"CONCATENATE(\"      ilość:  \",Ogólnouczelniane!Q39)","v":"      ilość:  100"},"Kosmetyczka "]
[null,"1.35",null,"Materiał: Poliestrowy twill. Wymiary 260 x 130 x 140 mm. Termotransfer 120 x 50 mm. Kolor granatowy.\n Duża kosmetyczka wykonana z poliestrowego twillu pokrytego PCV, wnętrze wykończone jest podszewką.\n Gramatura 450g/m². Projekt znakowania do ustalenia i wykonania przed realizacją."]
[]
[null,null,{"$f":"CONCATENATE(\"      ilość:  \",Ogólnouczelniane!Q40)","v":"      ilość:  100"},"Uchwyt na telefon do samochodu"]
[null,"1.36",null,"Uchwyt na telefon montowanych do kratki wentylacyjnej. Pod wpływem ciężaru telefonu ramiona automatycznie dopasowują się do jego rozmiaru.\nS100xW95xG70 mm\nProjekt znakowania do ustalenia i wykonania przed realizacją.\nKolor: granatowy lub czarny. Logo w kolorze białym. "]
[]
[null,null,{"$f":"CONCATENATE(\"      ilość:  \",Ogólnouczelniane!Q41)","v":"      ilość:  100"},"Szklana butelka 500 ml"]
[null,"1.37",null,"Butelka wykonana ze szkła borokrzemowewgo. Pojemność 550 ml. Nakrętka bambusowa. Wymiary 63 x 225 x 63 mm. Logo zamieszczone na nakrętce.  Projekt znakowania do ustalenia i wykonania przed realizacją"]
[]
[null,null,{"$f":"CONCATENATE(\"      ilość:  \",Ogólnouczelniane!Q42)","v":"      ilość:  337"},"Pendrive"]
[null,"1.38",null,"USB 32 GB, nadruk w 1 kolorze, kolor prendrive: granatowy, logo w kolorze białym.  Projekt i kolor znakowania do ustalenia i wykonania przed realizacją."]
[]
[null,null,{"$f":"CONCATENATE(\"      ilość:  \",Ogólnouczelniane!Q43)","v":"      ilość:  20"},"Parasol składany automatycznie rozkładany"]
[null,"1.39",null,"Składany parasol sztormowy\n(pongee 190T, metal, włókno szklane • S1000 × W560 × G1000 mm,\nzłożony S290 x W60 x G60 mm\nDTF 145 x 145 mm lub Termotransfer 200 x 140 mm\nElegancki, wiatroodporny parasol automatycznie rozkładany\nz elastycznym zaczepem na rękę. Rama i zebra\nwykonane z włókna szklanego i aluminium. Patyk z metalu. Parasol\nsztormowy - dzięki zastosowaniu żeber o specjalnej konstrukcji,\nstelaż może być wywinięty przez wiatr na druga stronne. Średnica\nparasola 1000 mm.)\nProjekt grafiki i kolor do ustalenia i wykonania przed realizacją."]
[]
[null,null,{"$f":"CONCATENATE(\"      ilość:  \",Ogólnouczelniane!Q44)","v":"      ilość:  400"},"Opaska odblaskowam 30 cm"]
[null,"1.40",null,"Wymiary: S300 x W30 x G2 mm.  Materiał: tworzywo. Znakowanie: sitodruk, termotransfer. Dodatkowe informacje: kolor granatowy lub biały. \nProjekt grafiki i kolor do ustalenia i wykonania przed realizacją."]
[]
[null,null,{"$f":"CONCATENATE(\"      ilość:  \",Ogólnouczelniane!Q45)","v":"      ilość:  600"},"Osłona na kamerę Webcam Spyless"]
[null,"1.41",null,"Osłona na kamerę z taśmą samoprzylepną. Materiał wykonania: plastik. Wymiary: 41 x 16 x 2 mm\nProjekt grafiki i kolor do ustalenia i wykonania przed realizacją."]
[]
[null,null,{"$f":"CONCATENATE(\"      ilość:  \",Ogólnouczelniane!Q46)","v":"      ilość:  50"},"Apteczka turystyczna"]
[null,"1.42",null,"Apteczka podręczna zawierająca artykuły (bawełna, poliester, wiskoza 150 x 100 x 22 mm\nDTF 100 x 35 mm lub Termotransfer 100 x 35 mm\nApteczka podręczna zawierająca artykuły niezbędne do udzielenia\npierwszej pomocy w czasie podróży, pieszych wędrówek czy wakacji.\nW jej skład wchodzą: Plaster samoprzylepny 72*19mm 10 szt, Bandaż\nsamoprzylepny na palec 72* 45 mm, Elastyczny bandaż 6cm*4m 1 szt,\nTaśma medyczna 1.25 × 5 m, Antyseptyczna chusteczka 3*6 cm 2 szt,\nChusteczka nasączona alkoholem 3*6 cm 2 szt, Patyczki higieniczne 10 szt.\nProdukt zgodny z Dyrektywa 93/42/EEC.)"]
[]
[null,null,{"$f":"CONCATENATE(\"      ilość:  \",Ogólnouczelniane!Q47)","v":"      ilość:  100"},"Maskotka Miś"]
[null,"1.43",null,"S120 x W140x G120 mm, Miś w kolorze białym lub ecru. Koszulka w kolorze granatowym. Logo na koszulce w kolorze białym. Projekt znakowania do ustalenia i wykonania przed realizacją"]
[]
[null,null,{"$f":"CONCATENATE(\"      ilość:  \",Ogólnouczelniane!Q48)","v":"      ilość:  270"},"Kubek 350 ml"]
[null,"1.44",null,"Kubek porcelana, pojemność 350ml, wysokość 97 mm, średnica: 75mm. Nadruk oporny na mycie w zmywarkach/w zależności od tworzywa. Kubek w kolorze bisałym lub granatowym. Logo w kolorze granatowym lub białym. Kubek pakowany w pudełko. Projekt znakowania do ustalenia i wykonania przed realizacją"]
[]
[null,null,{"$f":"CONCATENATE(\"      ilość:  \",Ogólnouczelniane!Q49)","v":"      ilość:  100"},"Sciereczka do czyszczenia okularów"]
[null,"1.45",null,"Wymiary: 180 x 130 mm. Sciereczka w kolorze granatowym lub białym. Logo w kolorze granatowym lub białym.  \nMateriał: Mikrowłókno; zadruk jednostronny. Projekt znakowania do ustalenia i wykonania przed realizacją"]
[]
[null,null,{"$f":"CONCATENATE(\"      ilość:  \",Ogólnouczelniane!Q50)","v":"      ilość:  30"},"Zegar ścienny "]
[null,"1.46",null,"Zegar do powieszenia na ściane, kolor granatowy z białymi napsiami. Materiał: plastik, szkło. Średnica: nie mniej niż 34 cm x 4,5 cm. Projekt znakowania do ustalenia i wykonania przed realizacją"]
[]
[null,null,{"$f":"CONCATENATE(\"      ilość:  \",Ogólnouczelniane!Q51)","v":"      ilość:  100"},"Zestaw świec"]
[null,"1.47",null,"Zestaw trzech świec zapachowych, zapakowany w kartonowe opakowanie, pokrywa pudełka pokryta tłoczonym papierem. Logo na pokrywie pudełka.\n- Parafina, karton S150 x W85 x G55 mm\nProjekt znakowania do ustalenia i wykonania przed realizacją"]
[]
[null,null,{"$f":"CONCATENATE(\"      ilość:  \",Ogólnouczelniane!Q52)","v":"      ilość:  500"},"Magnes  "]
[null,"1.48",null,"Wymiary: 6 cm x 6 cm, rogi zaokrąglone, papier kreda 250 g, folia zabezpieczająca 1/0 błysk, folia magnetyczna 0,4.  Grafika na całości magenzu. Projekt znakowania do ustalenia i wykonania przed realizacją. "]
[]
[null,null,{"$f":"CONCATENATE(\"      ilość:  \",Ogólnouczelniane!Q53)","v":"      ilość:  100"},"Balsam do ust "]
[null,"1.50",null,"Naturalna balsam do ust w pudełku z ABS. Testowany dermatologicznie. Rozmiar: 3,5 x 3,5 x 3,5 cm. \nMateriał: ABS. Rodzaj znakowania: tampodruk. Kolor granatowy lub biały. Logo w kolorze białym lub granatowym. Logo umieszczone na nakrętce. Projekt znakowania do ustalenia i wykonania przed realizacją "]
[]
[null,null,{"$f":"CONCATENATE(\"      ilość:  \",Ogólnouczelniane!Q54)","v":"      ilość:  500"},"Kubek reklamowy"]
[null,"1.51",null,"Kubek porcelanowy, pojemność 280 ml,  wysokość 117 mm, średnica: 75 mm,  Nadruk oporny na mycie w zmywarkach/w zależności od tworzywa. Kubek w kolorze bisałym lub granatowym. Logo w kolorze granatowym lub białym. Kubek pakowany w pudełko. Projekt znakowania do ustalenia i wykonania przed realizacją. "]

{"sheet":"Formularz asortymentowo-ilośc.","index":2,"n_rows":56,"n_cols":11,"rows_kept":56,"merged":[[3,1,53,1]]}
[{"$nulls":3},"Załącznik nr 2- Formularz asortymentowo- ilościowy"]
[]
[{"$nulls":3},"Ogólnouczelniane",null,"ILOŚĆ","CENA JEDN. \nNETTO","WARTOŚĆ\nNETTO","STAWKA VAT","WARTOŚĆ VAT","WARTOŚĆ\nBRUTTO"]
[null,"UNIWERSYTET POMORSKI W SŁUPSKU",1,{"$f":"Ogólnouczelniane!C4","v":"Teczka konferencyjna"},{"$f":"Ogólnouczelniane!D4","v":"1.01"},{"$f":"Ogólnouczelniane!Q4","v":1755}]
[null,null,2,{"$f":"Ogólnouczelniane!C5","v":"Długopis dotykowy Touch Top"},{"$f":"Ogólnouczelniane!D5","v":"1.02"},{"$f":"Ogólnouczelniane!Q5","v":2100}]
[null,null,3,{"$f":"Ogólnouczelniane!C6","v":"Długopis plastikowy"},{"$f":"Ogólnouczelniane!D6","v":"1.03"},{"$f":"Ogólnouczelniane!Q6","v":2775}]
[null,null,4,{"$f":"Ogólnouczelniane!C7","v":"Wieczny ołówek "},{"$f":"Ogólnouczelniane!D7","v":"1.04"},{"$f":"Ogólnouczelniane!Q7","v":100}]
[null,null,5,{"$f":"Ogólnouczelniane!C8","v":"Zestaw piśmienniczy "},{"$f":"Ogólnouczelniane!D8","v":"1.05"},{"$f":"Ogólnouczelniane!Q8","v":100}]
[null,null,6,{"$f":"Ogólnouczelniane!C9","v":"Zestaw piśmienniczy S"},{"$f":"Ogólnouczelniane!D9","v":"1.06"},{"$f":"Ogólnouczelniane!Q9","v":50}]
[null,null,7,{"$f":"Ogólnouczelniane!C10","v":"Ołówek z gumką"},{"$f":"Ogólnouczelniane!D10","v":"1.07"},{"$f":"Ogólnouczelniane!Q10","v":5965}]
[null,null,8,{"$f":"Ogólnouczelniane!C11","v":"Notes klejony a5"},{"$f":"Ogólnouczelniane!D11","v":"1.08"},{"$f":"Ogólnouczelniane!Q11","v":1940}]
[null,null,9,{"$f":"Ogólnouczelniane!C12","v":"Notes "},{"$f":"Ogólnouczelniane!D12","v":"1.09"},{"$f":"Ogólnouczelniane!Q12","v":100}]
[null,null,10,{"$f":"Ogólnouczelniane!C13","v":"Zestaw notes z długopisem "},{"$f":"Ogólnouczelniane!D13","v":"1.10"},{"$f":"Ogólnouczelniane!Q13","v":100}]
[null,null,11,{"$f":"Ogólnouczelniane!C14","v":"Notes i planner "},{"$f":"Ogólnouczelniane!D14","v":"1.11"},{"$f":"Ogólnouczelniane!Q14","v":100}]
[null,null,12,{"$f":"Ogólnouczelniane!C15","v":"Zakładka do książki z linijką"},{"$f":"Ogólnouczelniane!D15","v":"1.12"},{"$f":"Ogólnouczelniane!Q15","v":1415}]
[null,null,13,{"$f":"Ogólnouczelniane!C16","v":"Wizytownik "},{"$f":"Ogólnouczelniane!D16","v":"1.13"},{"$f":"Ogólnouczelniane!Q16","v":50}]
[null,null,14,{"$f":"Ogólnouczelniane!C17","v":"Magnes na zakładki do książek"},{"$f":"Ogólnouczelniane!D17","v":"1.14"},{"$f":"Ogólnouczelniane!Q17","v":250}]
[null,null,15,{"$f":"Ogólnouczelniane!C18","v":"Blok z karteczkami"},{"$f":"Ogólnouczelniane!D18","v":"1.15"},{"$f":"Ogólnouczelniane!Q18","v":200}]
[null,null,16,{"$f":"Ogólnouczelniane!C19","v":"Torba na prezent mała"},{"$f":"Ogólnouczelniane!D19","v":"1.16"},{"$f":"Ogólnouczelniane!Q19","v":600}]
[null,null,17,{"$f":"Ogólnouczelniane!C20","v":"Torba na prezent duża"},{"$f":"Ogólnouczelniane!D20","v":"1.17"},{"$f":"Ogólnouczelniane!Q20","v":150}]
[null,null,18,{"$f":"Ogólnouczelniane!C21","v":"Torba "},{"$f":"Ogólnouczelniane!D21","v":"1.18"},{"$f":"Ogólnouczelniane!Q21","v":1265}]
[null,null,19,{"$f":"Ogólnouczelniane!C22","v":"Torba bawełniana "},{"$f":"Ogólnouczelniane!D22","v":"1.19"},{"$f":"Ogólnouczelniane!Q22","v":50}]
[null,null,20,{"$f":"Ogólnouczelniane!C23","v":"Torba na laptop"},{"$f":"Ogólnouczelniane!D23","v":"1.20"},{"$f":"Ogólnouczelniane!Q23","v":50}]
[null,null,21,{"$f":"Ogólnouczelniane!C24","v":"Smycz z karabińczykiem"},{"$f":"Ogólnouczelniane!D24","v":"1.21"},{"$f":"Ogólnouczelniane!Q24","v":2380}]
[null,null,22,{"$f":"Ogólnouczelniane!C25","v":"Plecak z bawełny "},{"$f":"Ogólnouczelniane!D25","v":"1.22"},{"$f":"Ogólnouczelniane!Q25","v":100}]
[null,null,23,{"$f":"Ogólnouczelniane!C26","v":"Etui na dokumenty  "},{"$f":"Ogólnouczelniane!D26","v":"1.23"},{"$f":"Ogólnouczelniane!Q26","v":50}]
[null,null,24,{"$f":"Ogólnouczelniane!C27","v":"Zestaw kredek w tubie"},{"$f":"Ogólnouczelniane!D27","v":"1.24"},{"$f":"Ogólnouczelniane!Q27","v":100}]
[null,null,25,{"$f":"Ogólnouczelniane!C28","v":"Zestaw szkolno biurowy"},{"$f":"Ogólnouczelniane!D28","v":"1.25"},{"$f":"Ogólnouczelniane!Q28","v":100}]
[null,null,26,{"$f":"Ogólnouczelniane!C29","v":"Kubek emaliowany "},{"$f":"Ogólnouczelniane!D29","v":"1.26"},{"$f":"Ogólnouczelniane!Q29","v":30}]
[null,null,27,{"$f":"Ogólnouczelniane!C30","v":"Kubek izotermiczny Tallin"},{"$f":"Ogólnouczelniane!D30","v":"1.27"},{"$f":"Ogólnouczelniane!Q30","v":100}]
[null,null,28,{"$f":"Ogólnouczelniane!C31","v":"Bidon z wkładem na owoce"},{"$f":"Ogólnouczelniane!D31","v":"1.27"},{"$f":"Ogólnouczelniane!Q31","v":50}]
[null,null,29,{"$f":"Ogólnouczelniane!C32","v":"Bidon sportowy "},{"$f":"Ogólnouczelniane!D32","v":"1.28"},{"$f":"Ogólnouczelniane!Q32","v":100}]
[null,null,30,{"$f":"Ogólnouczelniane!C33","v":"Ładowarka indukcyjna"},{"$f":"Ogólnouczelniane!D33","v":"1.29"},{"$f":"Ogólnouczelniane!Q33","v":80}]
[null,null,31,{"$f":"Ogólnouczelniane!C34","v":"Stojak do telefonu Gimo"},{"$f":"Ogólnouczelniane!D34","v":"1.30"},{"$f":"Ogólnouczelniane!Q34","v":80}]
[null,null,32,{"$f":"Ogólnouczelniane!C35","v":"Okulary przeciwsłoneczne"},{"$f":"Ogólnouczelniane!D35","v":"1.31"},{"$f":"Ogólnouczelniane!Q35","v":200}]
[null,null,33,{"$f":"Ogólnouczelniane!C36","v":"Butelka z atomizerem"},{"$f":"Ogólnouczelniane!D36","v":"1.32"},{"$f":"Ogólnouczelniane!Q36","v":50}]
[null,null,34,{"$f":"Ogólnouczelniane!C37","v":"Mydełko w listkach "},{"$f":"Ogólnouczelniane!D37","v":"1.33"},{"$f":"Ogólnouczelniane!Q37","v":50}]
[null,null,35,{"$f":"Ogólnouczelniane!C38","v":"Lusterko składane"},{"$f":"Ogólnouczelniane!D38","v":"1.34"},{"$f":"Ogólnouczelniane!Q38","v":80}]
[null,null,36,{"$f":"Ogólnouczelniane!C39","v":"Kosmetyczka "},{"$f":"Ogólnouczelniane!D39","v":"1.35"},{"$f":"Ogólnouczelniane!Q39","v":100}]
[null,null,37,{"$f":"Ogólnouczelniane!C40","v":"Uchwyt na telefon do samochodu"},{"$f":"Ogólnouczelniane!D40","v":"1.36"},{"$f":"Ogólnouczelniane!Q40","v":100}]
[null,null,38,{"$f":"Ogólnouczelniane!C41","v":"Szklana butelka 500 ml"},{"$f":"Ogólnouczelniane!D41","v":"1.37"},{"$f":"Ogólnouczelniane!Q41","v":100}]
[null,null,39,{"$f":"Ogólnouczelniane!C42","v":"Pendrive"},{"$f":"Ogólnouczelniane!D42","v":"1.38"},{"$f":"Ogólnouczelniane!Q42","v":337}]
[null,null,40,{"$f":"Ogólnouczelniane!C43","v":"Parasol składany automatycznie rozkładany"},{"$f":"Ogólnouczelniane!D43","v":"1.39"},{"$f":"Ogólnouczelniane!Q43","v":20}]
[null,null,41,{"$f":"Ogólnouczelniane!C44","v":"Opaska odblaskowam 30 cm"},{"$f":"Ogólnouczelniane!D44","v":"1.40"},{"$f":"Ogólnouczelniane!Q44","v":400}]
[null,null,42,{"$f":"Ogólnouczelniane!C45","v":"Osłona na kamerę Webcam Spyless"},{"$f":"Ogólnouczelniane!D45","v":"1.41"},{"$f":"Ogólnouczelniane!Q45","v":600}]
[null,null,43,{"$f":"Ogólnouczelniane!C46","v":"Apteczka turystyczna"},{"$f":"Ogólnouczelniane!D46","v":"1.42"},{"$f":"Ogólnouczelniane!Q46","v":50}]
[null,null,44,{"$f":"Ogólnouczelniane!C47","v":"Maskotka Miś"},{"$f":"Ogólnouczelniane!D47","v":"1.43"},{"$f":"Ogólnouczelniane!Q47","v":100}]
[null,null,45,{"$f":"Ogólnouczelniane!C48","v":"Kubek 350 ml"},{"$f":"Ogólnouczelniane!D48","v":"1.44"},{"$f":"Ogólnouczelniane!Q48","v":270}]
[null,null,46,{"$f":"Ogólnouczelniane!C49","v":"Sciereczka do czyszczenia okularów"},{"$f":"Ogólnouczelniane!D49","v":"1.45"},{"$f":"Ogólnouczelniane!Q49","v":100}]
[null,null,47,{"$f":"Ogólnouczelniane!C50","v":"Zegar ścienny "},{"$f":"Ogólnouczelniane!D50","v":"1.46"},{"$f":"Ogólnouczelniane!Q50","v":30}]
[null,null,48,{"$f":"Ogólnouczelniane!C51","v":"Zestaw świec"},{"$f":"Ogólnouczelniane!D51","v":"1.47"},{"$f":"Ogólnouczelniane!Q51","v":100}]
[null,null,49,{"$f":"Ogólnouczelniane!C52","v":"Magnes  "},{"$f":"Ogólnouczelniane!D52","v":"1.48"},{"$f":"Ogólnouczelniane!Q52","v":500}]
[null,null,50,{"$f":"Ogólnouczelniane!C53","v":"Balsam do ust "},{"$f":"Ogólnouczelniane!D53","v":"1.50"},{"$f":"Ogólnouczelniane!Q53","v":100}]
[null,null,51,{"$f":"Ogólnouczelniane!C54","v":"Kubek reklamowy"},{"$f":"Ogólnouczelniane!D54","v":"1.51"},{"$f":"Ogólnouczelniane!Q54","v":500}]
[]
[{"$nulls":8},"suma"]